bitfinex-derivatives/quotes_SOLF0:USTF0_20260208
["timestamp","ask_amount","ask_price","bid_price","bid_amount"]
[1770591750629,29.56546324,87.237,87.181,30.31919357]
[1770591751021,29.56546324,87.237,87.19,3.36838394]
[1770591751224,29.56546324,87.237,87.191,30.31919357]
[1770591754223,39.88796324,87.248,87.191,30.31919357]
[1770591754933,29.56546324,87.247,87.191,30.31919357]
[1770591755222,32.93384718,87.24,87.191,30.31919357]
[1770591756023,29.56546324,87.24,87.191,30.31919357]
[1770591759731,29.56546324,87.24,87.19,3.36838394]
[1770591759732,29.56546324,87.24,87.193,30.31919357]
[1770591760330,32.93384718,87.28,87.221,30.31919357]
[1770591760524,29.56546324,87.28,87.231,30.31919357]
[1770591761727,29.56546324,87.28,87.233,30.31919357]
[1770591761932,29.56546324,87.296,87.251,30.31919357]
[1770591762737,3.36838394,87.31,87.251,30.31919357]
[1770591763033,29.56546324,87.311,87.261,30.31919357]
[1770591763239,29.56546324,87.335,87.281,30.31919357]
[1770591764028,29.56546324,87.349,87.291,30.31919357]
[1770591764430,29.56546324,87.349,87.301,30.31919357]
[1770591766229,29.56546324,87.349,87.236,13.71368107]
[1770591766230,30.79593551,87.339,87.286,28.71733099]
[1770591766540,30.79593551,87.33,87.286,28.71733099]
[1770591769232,34.16431945,87.33,87.286,28.71733099]
[1770591772230,30.79593551,87.33,87.286,28.71733099]
[1770591772435,30.79593551,87.344,87.291,28.71733099]
[1770591773430,30.79593551,87.338,87.291,28.71733099]
[1770591774433,30.79593551,87.336,87.291,28.71733099]
[1770591776831,30.79593551,87.334,87.291,28.71733099]
[1770591781339,30.79593551,87.334,87.28,3.36838394]
[1770591781539,34.16431945,87.33,87.276,28.71733099]
[1770591781838,30.79593551,87.309,87.261,28.71733099]
[1770591782036,3.36838394,87.3,87.231,28.71733099]
[1770591782440,30.79593551,87.306,87.251,28.71733099]
[1770591783038,180.985,87.36,87.231,28.71733099]
[1770591783039,30.79593551,87.298,87.231,28.71733099]
[1770591783536,30.79593551,87.287,87.231,28.71733099]
[1770591783736,30.79593551,87.319,87.26,32.08571493]
[1770591783942,30.79593551,87.319,87.271,28.71733099]
[1770591784243,10.3129,87.329,87.271,28.71733099]
[1770591784443,30.79593551,87.333,87.281,28.71733099]
[1770591784837,3.36838394,87.34,87.281,28.71733099]
[1770591784838,30.79593551,87.331,87.281,28.71733099]
[1770591785437,20.6118,87.388,87.189,34.46]
[1770591785438,30.79593551,87.348,87.291,28.71733099]
[1770591785639,30.79593551,87.364,87.311,28.71733099]
[1770591786146,34.16431945,87.38,87.321,28.71733099]
[1770591786348,30.79593551,87.38,87.33,3.36838394]
[1770591786738,30.79593551,87.38,87.34,3.36838394]
[1770591787243,30.79593551,87.399,87.34,3.36838394]
[1770591787445,30.79593551,87.389,87.331,28.71733099]
[1770591788751,30.79593551,87.389,87.34,32.08571493]
[1770591788951,30.79593551,87.389,87.34,28.71733099]
[1770591791540,160.1988,87.451,87.34,28.71733099]
[1770591791541,30.79593551,87.411,87.342,28.71733099]
[1770591792244,10.3014,87.426,87.36,8.98306552]
[1770591792436,30.79593551,87.439,87.361,28.71733099]
[1770591793444,30.79593551,87.439,87.362,28.71733099]
[1770591793742,30.79593551,87.439,87.36,8.98306552]
[1770591793743,30.79593551,87.471,87.381,28.71733099]
[1770591793944,30.79593551,87.484,87.381,28.71733099]
[1770591794150,30.79593551,87.484,87.401,28.71733099]
[1770591794650,10.2913,87.512,87.421,28.71733099]
[1770591794953,10.54888371,87.557,87.421,28.71733099]
[1770591794954,30.79593551,87.511,87.421,28.71733099]
[1770591795145,28.87799227,87.506,87.424,29.5556607]
[1770591795351,28.87799227,87.506,87.38,34.46]
[1770591795352,28.87799227,87.506,87.431,29.5556607]
[1770591795744,27.24287321,87.524,87.451,28.38675558]
[1770591796750,8.98306552,87.54,87.451,28.38675558]
[1770591796751,27.24287321,87.522,87.451,28.38675558]
[1770591797055,27.24287321,87.519,87.432,28.38675558]
[1770591797250,27.24287321,87.494,87.414,28.38675558]
[1770591797444,27.24287321,87.494,87.398,28.38675558]
[1770591797842,27.24287321,87.491,87.398,28.38675558]
[1770591798047,27.24287321,87.479,87.398,28.38675558]
[1770591798344,27.24287321,87.477,87.398,28.38675558]
[1770591798547,27.24287321,87.477,87.372,28.38675558]
[1770591798948,27.24287321,87.477,87.393,28.38675558]
[1770591801152,27.24287321,87.498,87.411,28.38675558]
[1770591801453,27.24287321,87.517,87.431,28.38675558]
[1770591802149,27.24287321,87.517,87.451,28.38675558]
[1770591803153,27.24287321,87.533,87.451,28.38675558]
[1770591803457,2.00355736,87.559,87.461,28.38675558]
[1770591803458,27.24287321,87.549,87.461,28.38675558]
[1770591804056,27.24287321,87.54,87.461,28.38675558]
[1770591804849,2.00355736,87.559,87.42,8.9701875]
[1770591804850,29.24643057,87.559,87.481,28.38675558]
[1770591805049,29.24643057,87.559,87.501,28.38675558]
[1770591805658,2.00355736,87.559,87.501,28.38675558]
[1770591806450,27.24287321,87.604,87.53,8.9701875]
[1770591806656,27.24287321,87.604,87.531,28.38675558]
[1770591806857,27.24287321,87.604,87.51,8.9701875]
[1770591807053,27.24287321,87.599,87.51,8.9701875]
[1770591807360,27.24287321,87.599,87.491,28.38675558]
[1770591807761,27.24287321,87.576,87.491,28.38675558]
[1770591808456,27.24287321,87.571,87.491,28.38675558]
[1770591809362,27.24287321,87.568,87.491,28.38675558]
[1770591813463,27.24287321,87.596,87.491,28.38675558]
[1770591813667,27.24287321,87.618,87.511,28.38675558]
[1770591813861,27.24287321,87.618,87.536,28.38675558]
[1770591814261,27.24287321,87.618,87.543,28.38675558]
[1770591815366,27.24287321,87.618,87.549,28.38675558]
[1770591815671,27.24287321,87.637,87.551,28.38675558]
[1770591816168,27.24287321,87.665,87.571,28.38675558]
[1770591816867,27.24287321,87.664,87.573,28.38675558]
[1770591817271,27.24287321,87.659,87.573,28.38675558]
[1770591817963,27.24287321,87.659,87.55,8.9701875]
[1770591817964,27.24287321,87.641,87.551,28.38675558]
[1770591818363,27.24287321,87.639,87.551,28.38675558]
[1770591819768,27.24287321,87.627,87.551,28.38675558]
[1770591820462,27.24287321,87.622,87.535,28.38675558]
[1770591821770,27.24287321,87.614,87.535,28.38675558]
[1770591822371,27.24287321,87.607,87.535,28.38675558]
[1770591823574,27.24287321,87.607,87.537,28.38675558]
[1770591823774,37.52337321,87.604,87.537,28.38675558]
[1770591823978,8.9701875,87.62,87.537,28.38675558]
[1770591823979,27.24287321,87.603,87.537,28.38675558]
[1770591824184,27.24287321,87.639,87.537,28.38675558]
[1770591824376,27.24287321,87.623,87.537,28.38675558]
[1770591824770,27.24287321,87.623,87.551,28.38675558]
[1770591824966,10.2768,87.636,87.551,28.38675558]
[1770591825172,29.09120476,87.64,87.551,28.38675558]
[1770591825777,29.09120476,87.64,87.567,27.74072261]
[1770591826079,29.09120476,87.657,87.571,27.74072261]
[1770591826265,29.09120476,87.657,87.58,8.9701875]
[1770591826471,29.09120476,87.657,87.587,27.74072261]
[1770591826975,29.09120476,87.675,87.601,27.74072261]
[1770591827278,29.09120476,87.699,87.611,27.74072261]
[1770591827479,29.09120476,87.699,87.561,34.46]
[1770591827480,29.09120476,87.737,87.67,27.74072261]
[1770591827875,29.09120476,87.737,87.645,10.2756]
[1770591828082,29.09120476,87.719,87.621,27.74072261]
[1770591828280,29.09120476,87.699,87.621,27.74072261]
[1770591828679,29.09120476,87.699,87.601,27.74072261]
[1770591829279,29.09120476,87.699,87.621,27.74072261]
[1770591829587,29.09120476,87.739,87.641,27.74072261]
[1770591829776,29.09120476,87.793,87.661,27.74072261]
[1770591829977,29.09120476,87.769,87.661,27.74072261]
[1770591830482,29.09120476,87.76,87.665,27.74072261]
[1770591830677,29.09120476,87.76,87.665,27.24072261]
[1770591830884,29.09120476,87.749,87.657,10.2742]
[1770591831276,10.2663,87.725,87.629,10.2775]
[1770591831476,29.09120476,87.724,87.629,10.2775]
[1770591832885,29.09120476,87.709,87.629,10.2775]
[1770591833583,29.09120476,87.707,87.627,27.74072261]
[1770591833783,29.09120476,87.707,87.614,10.2792]
[1770591834178,29.09120476,87.705,87.619,27.74072261]
[1770591834579,8.9701875,87.77,87.647,27.74072261]
[1770591834580,29.09120476,87.726,87.647,27.74072261]
[1770591835676,29.09120476,87.726,87.648,10.2752]
[1770591835884,29.09120476,87.726,87.649,27.74072261]
[1770591836081,29.09120476,87.749,87.661,27.74072261]
[1770591836392,29.09120476,87.749,87.677,27.74072261]
[1770591836696,29.09120476,87.779,87.681,27.74072261]
[1770591837188,29.09120476,87.83,87.721,27.74072261]
[1770591837392,29.09120476,87.83,87.731,27.74072261]
[1770591837393,29.09120476,87.829,87.731,27.74072261]
[1770591838290,29.09120476,87.829,87.753,27.74072261]
[1770591838489,29.09120476,87.851,87.753,27.74072261]
[1770591838885,29.09120476,87.839,87.748,27.74072261]
[1770591839090,29.09120476,87.839,87.73,8.9701875]
[1770591839297,29.09120476,87.819,87.73,8.9701875]
[1770591839488,29.09120476,87.817,87.724,27.74072261]
[1770591839997,29.09120476,87.817,87.66,8.9701875]
[1770591839998,29.09120476,87.817,87.733,27.74072261]
[1770591840489,29.09120476,87.813,87.733,27.74072261]
[1770591840691,29.09120476,87.813,87.728,27.74072261]
[1770591841285,29.09120476,87.811,87.732,27.74072261]
[1770591842189,29.09120476,87.811,87.733,10.2653]
[1770591844002,29.09120476,87.809,87.733,10.2653]
[1770591844594,8.9701875,87.8,87.734,27.74072261]
[1770591845087,29.09120476,87.799,87.72,10.2668]
[1770591845490,29.09120476,87.799,87.723,27.74072261]
[1770591846195,29.09120476,87.818,87.725,27.74072261]
[1770591846397,29.09120476,87.818,87.741,27.74072261]
[1770591846601,29.09120476,87.839,87.741,27.74072261]
[1770591846790,29.09120476,87.839,87.758,10.2623]
[1770591846994,29.09120476,87.839,87.759,27.74072261]
[1770591847197,29.09120476,87.839,87.761,27.74072261]
[1770591847596,29.09120476,87.839,87.775,10.2604]
[1770591847898,29.09120476,87.839,87.775,38.00112261]
[1770591850200,8.9701875,87.92,87.811,27.74072261]
[1770591850507,8.9701875,87.9,87.811,27.74072261]
[1770591851002,159.287,87.952,87.821,27.74072261]
[1770591851210,8.9701875,87.9,87.821,27.74072261]
[1770591851497,8.9701875,87.9,87.823,10.2547]
[1770591851898,8.9701875,87.9,87.821,27.74072261]
[1770591852100,8.9701875,87.88,87.809,10.2564]
[1770591852301,8.9701875,87.88,87.81,27.74072261]
[1770591852506,29.09120476,87.879,87.771,27.74072261]
[1770591853303,8.9701875,87.9,87.77,8.9701875]
[1770591853304,29.09120476,87.897,87.795,27.74072261]
[1770591854099,29.09120476,87.889,87.795,27.74072261]
[1770591854803,8.9701875,87.89,87.795,27.74072261]
[1770591854804,29.09120476,87.869,87.795,27.74072261]
[1770591855395,29.09120476,87.869,87.803,10.2571]
[1770591855800,26.82015058,87.917,87.857,27.56458823]
[1770591856004,26.82015058,87.939,87.857,27.56458823]
[1770591856204,26.82015058,87.939,87.85,8.9701875]
[1770591856205,26.82015058,87.959,87.871,27.56458823]
[1770591856402,26.82015058,87.981,87.891,27.56458823]
[1770591856606,8.9701875,88.0,87.904,27.56458823]
[1770591856903,26.82015058,88.044,87.941,27.56458823]
[1770591857102,26.82015058,88.044,87.967,27.56458823]
[1770591857406,8.9701875,88.06,87.967,27.56458823]
[1770591857600,26.82015058,88.059,87.971,27.56458823]
[1770591858000,8.9701875,88.08,87.949,27.56458823]
[1770591858001,26.82015058,88.039,87.949,27.56458823]
[1770591858201,26.82015058,88.039,87.951,27.56458823]
[1770591859307,26.82015058,88.039,87.964,27.56458823]
[1770591859808,26.82015058,88.039,87.971,27.56458823]
[1770591860010,26.82015058,88.039,87.909,27.56458823]
[1770591860207,8.9701875,88.03,87.931,27.56458823]
[1770591860407,26.82015058,88.009,87.911,27.56458823]
[1770591861002,26.82015058,88.009,87.921,27.56458823]
[1770591861398,26.82015058,88.009,87.93,27.56458823]
[1770591862300,26.82015058,88.009,87.939,27.56458823]
[1770591862500,26.82015058,88.032,87.941,27.56458823]
[1770591863601,26.82015058,88.055,87.961,27.56458823]
[1770591864310,26.82015058,88.049,87.939,27.56458823]
[1770591864899,26.82015058,88.029,87.92,27.56458823]
[1770591865102,26.82015058,88.029,87.921,27.56458823]
[1770591865405,26.82015058,88.029,87.923,27.56458823]
[1770591865606,26.82015058,88.029,87.955,10.2394]
[1770591866110,26.82015058,88.029,87.969,10.2378]
[1770591867603,26.82015058,88.029,87.984,10.236]
[1770591870415,8.8626008,88.09,87.984,10.236]
[1770591870808,10.2248,88.081,87.984,10.236]
[1770591871412,10.2248,88.081,88.0,8.8626008]
[1770591871717,10.2232,88.095,88.0,8.8626008]
[1770591872518,26.82015058,88.082,88.001,10.2341]
[1770591873216,26.82015058,88.082,87.98,27.56458823]
[1770591873416,26.82015058,88.082,88.0,8.8626008]
[1770591874114,26.82015058,88.082,88.002,10.2339]
[1770591875213,26.82015058,88.078,88.0,8.8626008]
[1770591875413,26.82015058,88.078,87.989,10.2354]
[1770591875908,298.5561298,88.083,87.989,10.2354]
[1770591875909,26.82015058,88.072,87.989,10.2354]
[1770591876116,26.82015058,88.072,88.0,10.2341]
[1770591878920,26.82015058,88.072,87.987,10.2357]
[1770591879315,26.82015058,88.072,87.987,27.56458823]
[1770591879618,26.82015058,88.072,88.0,8.8626008]
[1770591879817,26.82015058,88.072,88.0,36.42718903]
[1770591880713,26.82015058,88.072,88.005,10.2336]
[1770591881719,26.82015058,88.072,88.018,10.2321]
[1770591884214,26.82015058,88.072,88.001,10.234]
[1770591885217,26.23975045,88.069,87.986,10.2357]
[1770591885515,26.23975045,88.069,87.981,28.43423311]
[1770591886108,26.23975045,88.069,88.0,8.8626008]
[1770591887522,26.23975045,88.069,88.007,10.2333]
[1770591888918,26.23975045,88.069,87.982,28.43423311]
[1770591889117,26.23975045,88.069,87.98,8.8626008]
[1770591889921,28.47479239,88.044,87.96,8.8626008]
[1770591890815,28.47479239,88.031,87.949,10.2401]
[1770591892213,28.47479239,88.027,87.949,10.2401]
[1770591893217,28.47479239,88.024,87.945,28.43423311]
[1770591893723,28.47479239,88.024,87.94,8.8626008]
[1770591893923,28.47479239,88.008,87.94,8.8626008]
[1770591895520,10.2341,88.001,87.94,8.8626008]
[1770591895714,28.47479239,88.018,87.93,28.43423311]
[1770591895911,28.47479239,88.043,87.941,28.43423311]
[1770591896112,28.47479239,88.016,87.941,28.43423311]
[1770591896316,28.47479239,88.016,87.943,28.43423311]
[1770591897321,28.47479239,88.016,87.9,8.8626008]
[1770591897322,28.47479239,88.031,87.961,28.43423311]
[1770591897515,28.47479239,88.031,87.951,28.43423311]
[1770591897922,28.47479239,88.029,87.951,28.43423311]
[1770591898617,28.47479239,88.023,87.951,28.43423311]
[1770591899420,28.47479239,88.02,87.95,8.8626008]
[1770591899714,28.47479239,88.018,87.933,28.43423311]
[1770591900223,8.8626008,88.04,87.933,28.43423311]
[1770591900224,28.47479239,88.003,87.933,28.43423311]
[1770591900423,28.47479239,88.0,87.933,28.43423311]
[1770591900621,10.41423534,88.001,87.933,28.43423311]
[1770591900622,28.47479239,87.997,87.933,28.43423311]
[1770591900825,28.47479239,87.995,87.915,28.43423311]
[1770591901321,28.47479239,87.991,87.915,28.43423311]
[1770591901525,28.47479239,87.991,87.917,28.43423311]
[1770591901925,28.47479239,87.989,87.917,28.43423311]
[1770591902221,28.47479239,87.95,87.88,37.29683391]
[1770591903019,28.47479239,87.947,87.88,37.29683391]
[1770591903220,28.47479239,87.942,87.88,8.8626008]
[1770591903415,28.47479239,87.942,87.862,28.43423311]
[1770591903821,28.47479239,87.931,87.862,28.43423311]
[1770591904327,28.47479239,87.939,87.862,28.43423311]
[1770591904916,38.88902773,87.923,87.862,28.43423311]
[1770591905320,28.47479239,87.923,87.862,28.43423311]
[1770591905825,28.47479239,87.923,87.843,28.43423311]
[1770591906023,28.47479239,87.935,87.861,28.43423311]
[1770591906225,10.242,87.933,87.861,28.43423311]
[1770591906418,28.47479239,87.948,87.861,28.43423311]
[1770591906822,28.47479239,87.94,87.861,28.43423311]
[1770591907020,28.47479239,87.957,87.871,28.43423311]
[1770591907428,20.54019911,88.0,87.84,8.8626008]
[1770591907429,28.47479239,87.978,87.891,28.43423311]
[1770591907727,28.47479239,88.004,87.911,28.43423311]
[1770591907927,28.47479239,87.989,87.911,28.43423311]
[1770591908325,28.47479239,87.989,87.931,28.43423311]
[1770591909025,10.51465324,88.019,87.931,28.43423311]
[1770591909324,10.51465324,88.019,87.91,8.8626008]
[1770591909325,28.47479239,88.028,87.941,28.43423311]
[1770591909525,28.47479239,88.028,87.942,28.43423311]
[1770591910125,28.47479239,88.028,87.961,28.43423311]
[1770591911219,28.47479239,88.041,87.961,28.43423311]
[1770591912034,28.47479239,88.038,87.941,28.43423311]
[1770591912631,28.47479239,88.019,87.941,28.43423311]
[1770591912835,28.47479239,87.999,87.918,28.43423311]
[1770591913127,28.47479239,87.979,87.918,28.43423311]
[1770591913523,8.8626008,87.98,87.918,28.43423311]
[1770591913725,10.2345,87.998,87.918,28.43423311]
[1770591913933,28.47479239,87.979,87.881,28.43423311]
[1770591914229,8.8626008,88.02,87.881,28.43423311]
[1770591914230,28.47479239,87.959,87.881,28.43423311]
[1770591914632,10.2394,87.956,87.881,28.43423311]
[1770591914932,28.47479239,87.959,87.881,28.43423311]
[1770591915122,37.60444886,87.98,87.881,28.43423311]
[1770591915320,8.8626008,87.98,87.898,27.15400829]
[1770591915536,28.74184806,88.006,87.901,27.15400829]
[1770591916534,28.74184806,88.006,87.928,28.39315968]
[1770591916733,8.8626008,88.01,87.928,28.39315968]
[1770591917031,28.83321721,87.996,87.928,28.39315968]
[1770591917422,8.8626008,87.99,87.928,28.39315968]
[1770591917634,28.83321721,87.989,87.897,28.39315968]
[1770591918133,28.83321721,87.969,87.897,28.39315968]
[1770591918524,28.83321721,87.989,87.897,28.39315968]
[1770591919128,37.69581801,88.01,87.911,28.39315968]
[1770591919334,28.83321721,87.989,87.911,28.39315968]
[1770591919631,28.83321721,88.009,87.911,28.39315968]
[1770591920637,28.83321721,88.033,87.931,28.39315968]
[1770591921633,10.231,88.028,87.939,10.2412]
[1770591921833,10.231,88.028,87.94,28.39315968]
[1770591922425,28.83321721,88.033,87.951,28.39315968]
[1770591922632,28.83321721,88.054,87.951,28.39315968]
[1770591923031,10.2264,88.068,87.981,28.39315968]
[1770591923734,28.83321721,88.079,87.983,28.39315968]
[1770591923936,28.83321721,88.101,88.001,28.39315968]
[1770591924329,28.83321721,88.101,87.947,34.23]
[1770591924330,10.49619407,88.132,87.956,159.2772]
[1770591924530,10.49619407,88.207,88.018,159.1658]
[1770591924731,81.16104723,88.217,88.033,159.139]
[1770591924936,81.16104723,88.217,88.081,34.23]
[1770591925237,80.89059873,88.203,88.081,34.23]
[1770591925438,80.89059873,88.185,88.064,10.2266]
[1770591925625,1.97397529,88.255,88.08,8.85401594]
[1770591925626,81.40163238,88.186,88.08,8.85401594]
[1770591925826,0.51103365,88.186,88.1,8.85401594]
[1770591926034,1.97397529,88.255,88.16,8.85401594]
[1770591926237,81.16104723,88.325,88.24,8.85401594]
[1770591926441,81.16104723,88.316,88.25,1.594e-05]
[1770591926633,81.16104723,88.316,88.23,8.85401594]
[1770591926831,81.16104723,88.352,88.22,24.69962092]
[1770591927026,239.68254723,88.377,88.201,10.2108]
[1770591927234,158.5029,88.387,88.27,24.69962092]
[1770591927529,9.419e-05,88.33,88.28,24.69962092]
[1770591927726,0.50185384,88.404,88.3,24.69962092]
[1770591927929,0.50185384,88.404,88.32,24.69962092]
[1770591928133,0.50185384,88.404,88.22,24.69962092]
[1770591928134,81.16104723,88.481,88.38,24.69962092]
[1770591928632,81.16104723,88.481,88.36,24.69962092]
[1770591928837,63.67399895,88.476,88.34,24.69962092]
[1770591929134,158.2854,88.508,88.326,158.6105]
[1770591929334,158.1426,88.588,88.37,24.69962092]
[1770591929335,158.2343,88.537,88.37,24.69962092]
[1770591929534,158.2491,88.529,88.38,24.69962092]
[1770591929839,158.1563,88.581,88.35,24.69962092]
[1770591929840,158.3349,88.481,88.35,24.69962092]
[1770591930034,158.3928,88.448,88.31,24.69962092]
[1770591930233,24.69962092,88.41,88.231,158.7808]
[1770591930428,158.4287,88.428,88.28,24.69962092]
[1770591930733,158.4287,88.428,88.222,10.2084]
[1770591930734,24.69962092,88.44,88.3,24.69962092]
[1770591930937,73.67145882,88.469,88.34,24.69962092]
[1770591931135,73.67145882,88.522,88.38,24.69962092]
[1770591931433,73.67145882,88.55,88.42,24.69962092]
[1770591931630,73.67145882,88.59,88.44,24.69962092]
[1770591931833,73.70929778,88.559,88.415,158.4518]
[1770591932034,73.70929778,88.549,88.369,158.5332]
[1770591932236,73.70929778,88.549,88.42,24.69962092]
[1770591932435,73.70929778,88.559,88.44,24.69962092]
[1770591932636,73.70929778,88.559,88.382,158.5097]
[1770591932840,1.96632943,88.613,88.36,24.69962092]
[1770591932841,74.58839405,88.509,88.36,24.69962092]
[1770591933036,74.58839405,88.538,88.4,24.69962092]
[1770591933239,473.772,88.711,88.42,24.69962092]
[1770591933240,74.58839405,88.559,88.42,24.69962092]
[1770591933638,24.69962092,88.58,88.44,24.69962092]
[1770591933834,74.63090036,88.579,88.44,24.69962092]
[1770591934139,74.63090036,88.539,88.39,24.69962092]
[1770591934341,74.63090036,88.539,88.276,634.7992]
[1770591934342,74.63090036,88.509,88.36,24.69962092]
[1770591934538,74.63090036,88.469,88.32,24.69962092]
[1770591934836,24.69962092,88.43,88.3,24.69962092]
[1770591935034,72.86833041,88.429,88.3,24.69962092]
[1770591935237,72.86833041,88.429,88.28,24.69962092]
[1770591935436,72.86833041,88.429,88.266,158.7186]
[1770591935437,72.86833041,88.459,88.333,158.5982]
[1770591935735,72.86833041,88.514,88.38,24.69962092]
[1770591936131,24.69962092,88.52,88.394,158.4885]
[1770591936334,72.89828796,88.541,88.42,24.69962092]
[1770591936629,72.89828796,88.541,88.346,226.62]
[1770591936630,72.97822961,88.509,88.37,24.69962092]
[1770591936830,72.97822961,88.509,88.267,158.7171]
[1770591936831,72.97822961,88.507,88.36,24.69962092]
[1770591937037,72.97822961,88.489,88.34,24.69962092]
[1770591937335,72.97822961,88.489,88.36,24.69962092]
[1770591937636,73.0077526,88.536,88.38,24.69962092]
[1770591937840,73.0077526,88.529,88.4,24.69962092]
[1770591938532,73.0077526,88.555,88.42,24.69962092]
[1770591938737,73.0077526,88.587,88.44,24.69962092]
[1770591938932,74.57446775,88.569,88.395,158.4875]
[1770591939136,226.56,88.615,88.38,24.69962092]
[1770591939137,74.57446775,88.529,88.38,24.69962092]
[1770591939330,74.57446775,88.509,88.38,24.69962092]
[1770591939736,74.61255707,88.603,88.414,158.4532]
[1770591939935,74.61255707,88.559,88.438,10.1834]
[1770591940233,74.61255707,88.559,88.43,24.69962092]
[1770591940234,74.61255707,88.609,88.472,158.3489]
[1770591940440,74.61255707,88.609,88.486,10.1779]
[1770591940642,24.69962092,88.6,88.46,24.69962092]
[1770591940837,72.90427289,88.559,88.42,24.69962092]
[1770591941041,72.90427289,88.585,88.46,24.69962092]
[1770591941239,72.90427289,88.585,88.44,24.69962092]
[1770591941545,72.90427289,88.639,88.5,24.69962092]
[1770591942032,72.90427289,88.639,88.507,10.1755]
[1770591942232,72.90427289,88.639,88.507,168.4611]
[1770591942541,72.90427289,88.639,88.505,10.1758]
[1770591942739,24.69962092,88.63,88.5,24.69962092]
[1770591943040,24.69962092,88.63,88.409,20.3735]
[1770591943041,24.69962092,88.59,88.45,24.69962092]
[1770591943339,24.69962092,88.59,88.31,475.9183]
[1770591943340,72.48174551,88.569,88.43,24.69962092]
[1770591943737,72.48174551,88.569,88.452,10.1818]
[1770591944139,72.50550701,88.549,88.4,251.13962092]
[1770591944338,72.50550701,88.549,88.42,24.69962092]
[1770591944532,24.69962092,88.57,88.44,158.407]
[1770591944735,24.69962092,88.59,88.462,158.3672]
[1770591944939,71.76423727,88.604,88.48,24.69962092]
[1770591945135,71.76423727,88.589,88.44,24.69962092]
[1770591945345,24.69962092,88.57,88.45,10.1821]
[1770591945644,24.69962092,88.57,88.44,24.69962092]
[1770591945840,24.69962092,88.57,88.449,10.1822]
[1770591946040,24.69962092,88.57,88.457,158.3762]
[1770591946439,71.76423727,88.589,88.468,10.18]
[1770591947336,72.26121151,88.549,88.404,158.4699]
[1770591947531,72.26121151,88.529,88.396,158.4849]
[1770591947737,72.28178522,88.559,88.445,10.1826]
[1770591947945,72.28178522,88.559,88.41,24.69962092]
[1770591948142,72.28178522,88.559,88.414,158.4535]
[1770591948343,158.0181,88.658,88.41,24.69962092]
[1770591948344,72.28178522,88.539,88.425,158.4325]
[1770591948541,24.69962092,88.55,88.435,158.4159]
[1770591948847,71.02787089,88.549,88.428,158.4279]
[1770591949036,71.02787089,88.549,88.365,158.5407]
[1770591949245,71.02787089,88.529,88.42,10.1855]
[1770591949548,158.0202,88.657,88.42,10.1855]
[1770591949549,71.02787089,88.569,88.441,158.4039]
[1770591949743,71.02787089,88.569,88.389,158.4981]
[1770591949744,71.02787089,88.569,88.466,10.1802]
[1770591950240,71.02787089,88.569,88.389,158.4981]
[1770591950241,71.04168889,88.598,88.458,158.3746]
[1770591950544,71.04168889,88.579,88.44,24.69962092]
[1770591950742,142.872632,88.622,88.351,158.5651]
[1770591950743,71.04168889,88.539,88.444,10.1827]
[1770591950944,71.51207183,88.519,88.38,24.69962092]
[1770591951144,71.51207183,88.579,88.454,158.3811]
[1770591951344,71.51207183,88.579,88.46,24.69962092]
[1770591951548,71.51207183,88.579,88.446,158.3946]
[1770591951848,71.51207183,88.579,88.486,10.178]
[1770591952446,71.52780272,88.549,88.468,10.18]
[1770591952643,71.52780272,88.529,88.4,24.69962092]
[1770591952842,71.52780272,88.529,88.346,158.5739]
[1770591952843,71.84156947,88.509,88.386,158.5036]
[1770591953048,71.84156947,88.499,88.379,158.5158]
[1770591953343,71.84156947,88.499,88.403,158.4724]
[1770591953537,71.84156947,88.519,88.438,10.1834]
[1770591954042,0.492632,88.622,88.42,24.69962092]
[1770591954043,24.69962092,88.56,88.42,24.69962092]
[1770591954441,0.492632,88.622,88.527,10.1731]
[1770591954742,24.69962092,88.62,88.492,158.3122]
[1770591954943,24.69962092,88.6,88.509,10.1753]
[1770591955144,24.69962092,88.56,88.44,158.4064]
[1770591955343,24.69962092,88.56,88.468,158.3566]
[1770591955537,0.492632,88.622,88.469,158.3543]
[1770591955538,24.69962092,88.58,88.469,158.3543]
[1770591955743,24.69962092,88.58,88.462,158.3666]
[1770591956045,62.75823048,88.579,88.495,10.1769]
[1770591956549,62.75823048,88.569,88.495,10.1769]
[1770591956746,62.55960252,88.549,88.476,10.1791]
[1770591957250,62.55960252,88.549,88.456,158.3781]
[1770591957545,62.55960252,88.549,88.43,24.69962092]
[1770591957744,62.55960252,88.549,88.447,158.3944]
[1770591957945,62.55960252,88.549,88.441,158.405]
[1770591958145,62.55960252,88.549,88.357,158.5541]
[1770591958336,0.492632,88.622,88.357,158.5541]
[1770591958337,62.57751823,88.529,88.396,158.4843]
[1770591958538,62.57751823,88.529,88.397,158.4832]
[1770591958851,62.89497367,88.509,88.431,10.1842]
[1770591959246,62.89497367,88.509,88.382,158.5092]
[1770591959441,62.89497367,88.509,88.411,10.1866]
[1770591959951,62.91394984,88.489,88.359,158.5522]
[1770591960252,62.91394984,88.489,88.281,158.6911]